bitfinex/quotes_SOLUSD_20251202
["timestamp","ask_amount","ask_price","bid_price","bid_amount"]
[1764701311529,0.7,140.14,140.11,25.11880892]
[1764701311835,3.08162628,140.13,140.11,25.11880892]
[1764701312019,3.78162628,140.14,140.11,25.11880892]
[1764701312203,0.7,140.13,140.11,25.11880892]
[1764701312827,7.13673993,140.12,140.11,25.11880892]
[1764701313233,7.83673993,140.12,140.11,25.11880892]
[1764701314216,0.7,140.12,140.11,25.11880892]
[1764701315030,7.83673993,140.12,140.11,25.11880892]
[1764701318842,0.7,140.12,140.11,25.11880892]
[1764701319839,7.13577655,140.14,140.11,25.11880892]
[1764701320042,0.69,140.13,140.11,25.11880892]
[1764701321039,7.82624703,140.13,140.11,25.11880892]
[1764701321340,0.69,140.13,140.11,25.11880892]
[1764701324028,7.82626314,140.13,140.11,25.11880892]
[1764701324416,0.67,140.12,140.11,25.11880892]
[1764701329152,7.89561887,140.14,140.11,25.11880892]
[1764701329523,0.67,140.13,140.11,25.11880892]
[1764701330251,7.80627727,140.13,140.11,25.11880892]
[1764701330428,15.03189614,140.13,140.11,25.11880892]
[1764701330745,0.67,140.12,140.11,25.11880892]
[1764701331247,7.89561887,140.12,140.11,25.11880892]
[1764701332050,0.67,140.12,140.11,25.11880892]
[1764701332430,7.80673993,140.12,140.11,25.11880892]
[1764701335654,0.67,140.15,140.11,36.0822893]
[1764701335954,0.67,140.15,140.11,36.8022893]
[1764701336850,0.67,140.15,140.11,33.71880892]
[1764701337247,0.67,140.15,140.11,36.8022893]
[1764701337631,7.13572142,140.14,140.11,36.8022893]
[1764701338354,7.80572142,140.14,140.11,36.8022893]
[1764701338731,7.80572142,140.14,140.12,3.08348038]
[1764701339044,7.80572142,140.14,140.11,36.8022893]
[1764701339435,7.13521227,140.15,140.12,3.80348038]
[1764701339636,7.80521227,140.15,140.12,3.80348038]
[1764701339935,7.80521227,140.15,140.11,36.0822893]
[1764701340145,7.80521227,140.15,140.11,36.8022893]
[1764701340435,7.80521227,140.15,140.11,38.53455146]
[1764701340647,25.64324295,140.15,140.11,33.71880892]
[1764701340845,0.67,140.14,140.11,38.53455146]
[1764701341041,0.67,140.14,140.11,32.99880892]
[1764701341446,7.13623064,140.13,140.11,32.99880892]
[1764701342534,0.67,140.12,140.11,25.11880892]
[1764701343163,5.48574254,140.12,140.07,7.88]
[1764701343361,4.81574254,140.1,140.05,4.81574254]
[1764701343660,29.79968143,140.09,140.06,8.80994492]
[1764701343961,29.79968143,140.09,140.06,25.11880892]
[1764701344261,0.67,140.08,140.06,8.80994492]
[1764701344445,0.67,140.08,140.07,16.308864]
[1764701344642,0.67,140.08,140.04,8.80994492]
[1764701344643,5.48574254,140.08,140.04,8.80994492]
[1764701344845,4.81574254,140.06,140.01,5.53574254]
[1764701345150,4.81574254,140.06,140.05,25.11880892]
[1764701345465,11.95553976,140.06,140.05,25.11880892]
[1764701345632,7.13979722,140.06,140.05,25.11880892]
[1764701345837,7.80979722,140.06,140.05,25.11880892]
[1764701346264,7.13946181,140.07,140.05,25.11880892]
[1764701346637,7.80892041,140.08,140.05,25.11880892]
[1764701346841,7.80892041,140.08,140.05,29.93455146]
[1764701347237,7.1384642,140.09,140.06,4.81574254]
[1764701347471,0.67,140.1,140.08,25.11880892]
[1764701347770,7.13741138,140.11,140.08,25.11880892]
[1764701348092,0.67,140.11,140.1,25.11880892]
[1764701348361,7.80693523,140.12,140.1,25.11880892]
[1764701348660,0.67,140.11,140.1,25.11880892]
[1764701350159,7.8072493,140.11,140.1,25.11880892]
[1764701350364,7.8072493,140.11,140.1,16.308864]
[1764701350551,12.62299184,140.11,140.1,25.11880892]
[1764701350747,5.48574254,140.11,140.1,25.11880892]
[1764701350956,7.8072493,140.11,140.1,25.11880892]
[1764701351259,7.13692952,140.12,140.11,8.80994492]
[1764701351460,12.62267206,140.12,140.11,8.80994492]
[1764701352182,7.80692952,140.12,140.11,8.80994492]
[1764701353974,12.62267206,140.12,140.11,8.80994492]
[1764701354683,12.62267206,140.12,140.1,16.308864]
[1764701354684,7.80692952,140.12,140.1,16.308864]
[1764701354886,0.67,140.11,140.1,25.11880892]
[1764701355568,5.48574254,140.11,140.1,25.11880892]
[1764701355882,12.62299184,140.11,140.1,25.11880892]
[1764701356863,7.8072493,140.11,140.1,25.11880892]
[1764701358271,7.1372493,140.11,140.1,25.11880892]
[1764701358682,7.13711367,140.12,140.11,8.80994492]
[1764701358879,7.80711367,140.12,140.11,8.80994492]
[1764701360003,12.62285621,140.12,140.1,16.308864]
[1764701360171,13.36574254,140.11,140.05,8.80994492]
[1764701360376,4.81574254,140.08,140.05,8.80994492]
[1764701360571,4.81574254,140.08,140.07,25.11880892]
[1764701360988,7.88,140.11,140.07,16.308864]
[1764701361289,4.81574254,140.09,140.07,16.308864]
[1764701361707,4.81574254,140.09,140.05,8.80994492]
[1764701361872,7.80877784,140.08,140.07,16.308864]
[1764701364395,7.80877784,140.08,140.07,25.11880892]
[1764701366292,12.62452038,140.08,140.07,25.11880892]
[1764701366589,12.62452038,140.08,140.05,25.11880892]
[1764701367000,0.67,140.07,140.05,25.11880892]
[1764701367581,7.13979722,140.06,140.05,25.11880892]
[1764701369611,7.80938974,140.07,140.05,25.11880892]
[1764701371186,7.13938974,140.07,140.05,25.11880892]
[1764701371385,0.67,140.06,140.05,25.11880892]
[1764701372395,4.81574254,140.09,140.05,25.11880892]
[1764701372590,0.67,140.06,140.05,25.11880892]
[1764701373305,7.13837521,140.09,140.05,30.62455146]
[1764701373503,0.67,140.1,140.06,5.48574254]
[1764701373810,0.72,140.09,140.07,8.80994492]
[1764701374009,25.72246015,140.12,140.09,8.80994492]
[1764701374010,0.72,140.12,140.09,8.80994492]
[1764701374510,5.53574254,140.12,140.09,8.80994492]
[1764701375007,7.8572493,140.11,140.09,8.80994492]
[1764701377087,7.1372493,140.11,140.09,8.80994492]
[1764701377292,0.72,140.11,140.09,8.80994492]
[1764701377516,7.85728967,140.11,140.09,8.80994492]
[1764701378122,0.72,140.11,140.09,8.80994492]
[1764701378288,7.85742959,140.11,140.09,8.80994492]
[1764701378489,12.67317213,140.11,140.09,8.80994492]
[1764701378715,0.72,140.1,140.09,8.80994492]
[1764701379012,7.85775874,140.1,140.09,8.80994492]
[1764701381016,0.72,140.14,140.12,8.80994492]
[1764701381620,0.72,140.14,140.12,7.69204492]
[1764701382714,7.13541395,140.15,140.12,12.50778746]
[1764701383011,7.80541395,140.15,140.12,13.21778746]
[1764701383194,7.80541395,140.15,140.12,7.69204492]
[1764701384188,0.67,140.14,140.12,7.69204492]
[1764701384606,7.80599411,140.14,140.12,7.69204492]
[1764701385821,0.67,140.14,140.12,7.69204492]
[1764701386132,7.80588664,140.14,140.12,7.69204492]
[1764701388521,7.80543805,140.15,140.12,12.50778746]
[1764701389407,7.88,140.18,140.15,8.80994492]
[1764701389408,18.50478132,140.18,140.15,8.80994492]
[1764701389816,25.63846658,140.18,140.15,13.62568746]
[1764701390309,25.63846658,140.18,140.15,8.80994492]
[1764701390527,5.58574254,140.2,140.18,25.11880892]
[1764701390732,0.1,140.2,140.18,29.93455146]
[1764701391404,7.23272753,140.2,140.18,29.93455146]
[1764701391730,7.23272753,140.2,140.18,25.11880892]
[1764701392024,7.90272753,140.2,140.18,25.11880892]
[1764701392206,0.77,140.2,140.18,25.11880892]
[1764701392406,0.1,140.2,140.18,25.11880892]
[1764701393207,0.1,140.2,140.18,30.64455146]
[1764701393414,0.1,140.2,140.18,37.06804587]
[1764701393619,0.1,140.2,140.19,14.33568746]
[1764701393821,0.1,140.2,140.19,22.21568746]
[1764701397837,0.1,140.2,140.19,68.01568746]
[1764701399035,0.1,140.2,140.19,75.14886386]
[1764701400021,0.1,140.2,140.19,22.21568746]
[1764701400535,0.1,140.2,140.19,20.47848707]
[1764701400738,0.1,140.2,140.19,73.41166347]
[1764701401934,0.1,140.2,140.19,63.19994492]
[1764701402433,0.1,140.2,140.19,70.33312132]
[1764701403198,0.77,140.2,140.19,11.88848707]
[1764701403319,0.1,140.2,140.19,25.11880892]
[1764701403819,7.90266761,140.2,140.19,8.80994492]
[1764701404143,7.90266761,140.2,140.19,25.11880892]
[1764701407958,0.77,140.2,140.19,25.11880892]
[1764701408243,7.90266761,140.2,140.19,25.11880892]
[1764701409526,10.98120976,140.2,140.19,8.80994492]
[1764701412651,28.8128788,140.2,140.16,16.308864]
[1764701412842,0.67,140.19,140.17,8.80994492]
[1764701413155,7.13368526,140.18,140.17,8.80994492]
[1764701413327,10.21222741,140.18,140.16,16.308864]
[1764701413527,3.74854215,140.17,140.16,25.11880892]
[1764701414023,3.74854215,140.17,140.14,8.80994492]
[1764701414339,3.74854215,140.16,140.14,8.80994492]
[1764701414831,0.67,140.15,140.14,8.80994492]
[1764701415160,7.1331764,140.19,140.14,8.80994492]
[1764701415325,0.67,140.17,140.14,8.80994492]
[1764701416530,7.13470319,140.16,140.14,8.80994492]
[1764701418662,7.80470319,140.16,140.14,8.80994492]
[1764701418961,3.74854215,140.15,140.14,8.80994492]
[1764701419960,3.07854215,140.15,140.14,8.80994492]
[1764701420144,10.21324534,140.16,140.14,8.80994492]
[1764701420343,0.67,140.15,140.14,8.80994492]
[1764701421178,7.80470319,140.16,140.14,8.80994492]
[1764701421345,0.67,140.15,140.14,8.80994492]
[1764701422155,3.74854215,140.15,140.14,8.80994492]
[1764701422857,3.74854215,140.15,140.09,8.80994492]
[1764701423037,3.07854215,140.12,140.11,16.308864]
[1764701423254,10.21528208,140.12,140.11,16.308864]
[1764701423452,10.88528208,140.12,140.11,16.308864]
[1764701423662,10.88528208,140.12,140.11,25.11880892]
[1764701423866,10.88528208,140.12,140.11,8.80994492]
[1764701424552,7.80673993,140.12,140.11,8.80994492]
[1764701425160,7.80642275,140.13,140.12,8.80994492]
[1764701425562,28.7255415,140.13,140.1,16.308864]
[1764701425870,3.74854215,140.12,140.11,8.80994492]
[1764701426246,0.67,140.12,140.11,8.80994492]
[1764701427462,7.80673993,140.12,140.11,8.80994492]
[1764701429972,10.88528208,140.12,140.11,8.80994492]
[1764701431154,7.80673993,140.12,140.11,8.80994492]
[1764701431759,7.80673993,140.12,140.09,7.88]
[1764701431965,0.67,140.11,140.08,25.11880892]
[1764701432370,7.80764462,140.11,140.08,25.11880892]
[1764701432571,7.80764462,140.11,140.08,25.78880892]
[1764701433281,7.13764462,140.11,140.08,25.78880892]
[1764701435065,0.67,140.12,140.08,25.78880892]
[1764701435261,3.07854215,140.1,140.08,8.80994492]
[1764701435477,3.07854215,140.09,140.08,8.80994492]
[1764701435673,3.07854215,140.09,140.06,16.308864]
[1764701435870,3.07854215,140.09,140.02,3.74854215]
[1764701435871,3.07854215,140.07,140.02,3.74854215]
[1764701436083,0.67,140.08,139.98,39.16410449]
[1764701436084,3.07854215,140.04,139.98,15.69374717]
[1764701436387,3.07854215,140.01,139.97,8.08]
[1764701436688,3.07854215,140.0,139.99,16.308864]
[1764701436999,7.14285714,140.0,139.99,16.308864]
[1764701437190,10.22107726,140.01,140.0,16.308864]
[1764701437494,10.89094836,140.01,139.97,8.75]
[1764701437682,3.07854215,140.0,139.98,8.80994492]
[1764701437862,0.67,140.0,139.98,8.80994492]
[1764701438064,3.74854215,140.0,139.98,25.11880892]
[1764701438372,3.74854215,140.0,139.98,8.80994492]
[1764701438578,3.74854215,140.0,139.99,16.308864]
[1764701439291,3.07854215,140.0,139.99,16.308864]
[1764701439588,10.88088912,140.01,140.0,8.80994492]
[1764701439786,3.07854215,140.01,140.0,8.80994492]
[1764701440275,3.73854215,140.01,140.0,8.80994492]
[1764701440469,0.66,140.01,140.0,8.80994492]
[1764701440663,3.73854215,140.01,140.0,8.80994492]
[1764701440870,0.66,140.01,140.0,8.80994492]
[1764701441072,3.73854215,140.01,140.0,8.80994492]
[1764701441282,10.88088912,140.01,140.0,8.80994492]
[1764701442297,10.22088912,140.01,140.0,8.80994492]
[1764701442594,7.82234697,140.01,140.0,8.80994492]
[1764701442902,10.90088912,140.01,140.0,8.80994492]
[1764701443195,25.73331714,140.03,140.0,8.80994492]
[1764701443196,10.22041314,140.02,140.0,8.80994492]
[1764701443495,3.07854215,140.04,140.0,28.88735107]
[1764701443805,3.07854215,140.04,140.0,74.68735107]
[1764701443973,3.07854215,140.05,140.01,0.69]
[1764701444173,10.21907521,140.05,140.0,78.79880892]
[1764701444375,0.68,140.04,140.0,79.48880892]
[1764701444580,3.75854215,140.04,140.0,82.56735107]
[1764701445206,3.75854215,140.04,140.0,89.71014477]
[1764701445401,10.89969136,140.04,140.0,63.17994492]
[1764701445612,10.89969136,140.04,140.02,8.80994492]
[1764701445896,7.82114921,140.04,140.02,8.80994492]
[1764701447404,10.89857201,140.06,140.02,12.57848707]
[1764701447591,0.68,140.05,140.02,11.88848707]
[1764701447897,0.68,140.05,140.02,12.57848707]
[1764701448513,0.68,140.05,140.02,8.80994492]
[1764701448717,0.68,140.05,140.02,12.57848707]
[1764701449017,7.82002986,140.06,140.02,12.57848707]
[1764701449192,7.14002986,140.06,140.02,12.57848707]
[1764701449387,0.68,140.05,140.02,12.57848707]
[1764701449587,7.82002986,140.06,140.02,9.49994492]
[1764701449799,7.82002986,140.06,140.02,12.57848707]
[1764701450689,17.84637743,140.09,140.06,8.80994492]
[1764701450890,0.68,140.08,140.06,8.80994492]
[1764701451686,7.81926487,140.08,140.06,8.80994492]
[1764701452693,0.68,140.07,140.06,8.80994492]
[1764701453312,3.07854215,140.1,140.06,8.80994492]
[1764701453491,0.68,140.12,140.08,28.19735107]
[1764701453698,7.1372493,140.11,140.08,28.19735107]
[1764701454121,7.8172493,140.11,140.08,28.19735107]
[1764701455015,7.8172493,140.11,140.08,28.88735107]
[1764701455211,0.68,140.14,140.1,11.88848707]
[1764701455513,3.07854215,140.15,140.1,11.88848707]
[1764701455720,28.0517851,140.15,140.1,11.88848707]
[1764701455908,0.68,140.14,140.1,12.57848707]
[1764701456716,0.68,140.14,140.12,8.80994492]
[1764701457296,7.13521227,140.15,140.14,8.80994492]
[1764701457495,7.81521227,140.15,140.12,11.88848707]
[1764701457916,7.81521227,140.15,140.12,8.80994492]
[1764701458717,0.68,140.17,140.14,3.07854215]
[1764701459228,25.64967967,140.17,140.13,12.57848707]
[1764701459403,25.64967967,140.17,140.13,11.88848707]
[1764701459720,0.68,140.16,140.13,11.88848707]
[1764701460133,7.81500275,140.16,140.13,11.88848707]
[1764701460628,7.81500275,140.16,140.14,3.07854215]
[1764701460819,7.81500275,140.16,140.13,9.49994492]
[1764701460820,7.81500275,140.16,140.13,12.57848707]
[1764701461207,0.68,140.16,140.14,16.308864]
[1764701461404,0.68,140.16,140.15,8.80994492]
[1764701461807,0.68,140.17,140.15,8.80994492]
[1764701462007,0.68,140.16,140.15,8.80994492]
[1764701462732,5.49449444,140.16,140.15,8.80994492]
[1764701462916,0.68,140.16,140.15,8.80994492]
[1764701464517,7.81470319,140.16,140.15,8.80994492]
[1764701474133,35.28045006,140.16,140.06,5.49449444]
[1764701474440,4.81449444,140.1,140.06,5.49449444]
[1764701474640,4.81449444,140.1,140.09,16.308864]
[1764701474846,5.47449444,140.1,140.09,16.308864]
[1764701475150,0.66,140.09,140.05,5.49449444]
[1764701475322,5.47449444,140.09,140.06,25.11880892]
[1764701475645,7.88,140.12,140.06,30.61330336]
[1764701475646,5.47449444,140.11,140.06,30.61330336]
[1764701476036,0.66,140.1,140.06,30.61330336]
[1764701476228,7.13826825,140.09,140.07,0.68]
[1764701476842,7.79792966,140.1,140.07,0.68]
[1764701477366,27.83878788,156.21,140.11,8.80994492]
[1764701477367,0.66,140.15,140.11,8.80994492]
[1764701477655,0.66,140.15,140.12,4.81449444]
[1764701478848,7.13539149,140.15,140.14,8.80994492]
[1764701479439,7.79539149,140.15,140.14,8.80994492]
[1764701479625,7.13487419,140.16,140.14,5.49449444]
[1764701479952,7.13487419,140.16,140.14,4.81449444]
[1764701480138,7.79487419,140.16,140.14,4.81449444]
[1764701480448,0.66,140.15,140.14,16.308864]
[1764701480646,7.79487419,140.16,140.15,8.80994492]
[1764701482326,25.63163218,140.16,140.13,8.80994492]
[1764701483044,25.63163218,140.16,140.13,13.62443936]
[1764701483241,0.66,140.15,140.12,8.80994492]
[1764701483448,0.66,140.15,140.12,13.62443936]
[1764701484053,0.66,140.15,140.13,4.81449444]
[1764701484260,0.76,140.2,140.14,4.81449444]
[1764701484549,0.1,140.2,140.19,8.80994492]
[1764701484749,7.89267429,140.2,140.17,8.80994492]
[1764701485058,7.89267429,140.2,140.17,13.62443936]
[1764701485451,7.89267429,140.2,140.17,4.81449444]
[1764701487158,7.79336975,140.19,140.15,0.68]
[1764701487364,7.23279083,140.2,140.19,8.80994492]
[1764701488352,7.23279083,140.2,140.17,13.62443936]
[1764701488554,0.1,140.2,140.17,14.30443936]
[1764701488737,0.1,140.2,140.17,9.48994492]
[1764701488936,0.76,140.2,140.17,14.30443936]
[1764701489141,0.1,140.2,140.17,14.30443936]
[1764701489342,0.1,140.2,140.19,8.80994492]
[1764701489663,0.1,140.2,140.19,29.93330336]
[1764701490756,7.23266761,140.2,140.19,29.93330336]
[1764701490958,7.23266761,140.2,140.19,25.11880892]
[1764701491257,71.01666361,140.2,139.99,3.72681714]
[1764701491475,4.81449444,140.08,139.97,0.2]
[1764701491759,4.81449444,140.03,140.0,16.308864]
[1764701491940,0.66,140.07,140.0,16.308864]
[1764701492254,4.81449444,140.05,140.0,16.308864]
[1764701492456,0.66,140.05,140.02,4.81449444]
[1764701492757,7.13928749,140.07,140.04,21.12335844]
[1764701492963,7.13826825,140.09,140.06,16.308864]
[1764701493181,0.66,140.09,140.07,8.80994492]
[1764701493377,0.66,140.08,140.07,8.80994492]
[1764701494767,7.79877784,140.08,140.07,8.80994492]
[1764701495651,7.13877784,140.08,140.07,8.80994492]
[1764701495850,7.13877784,140.08,140.07,21.11615576]
[1764701496072,7.13877784,140.08,140.07,8.80994492]
[1764701496950,7.13826825,140.09,140.07,8.80994492]
[1764701497150,7.80826825,140.09,140.07,8.80994492]
[1764701498149,7.80826825,140.09,140.07,16.74994492]
[1764701499370,12.97621084,140.08,140.06,16.308864]
[1764701499682,12.30621084,140.07,140.06,16.308864]
[1764701499846,12.97621084,140.07,140.06,16.308864]
[1764701500046,0.67,140.07,140.06,16.308864]
[1764701500274,12.97621084,140.07,140.06,16.308864]
[1764701500649,12.97621084,140.07,140.04,24.248864]
[1764701501252,7.14030703,140.05,140.04,33.05880892]
[1764701502877,7.80030703,140.05,140.04,8.80994492]
[1764701503183,20.10651787,140.05,140.04,8.80994492]
[1764701503362,37.95728545,140.05,140.02,24.248864]
[1764701503553,12.30621084,140.03,140.02,16.74994492]
[1764701504079,12.96621084,140.03,140.02,16.74994492]
[1764701504971,12.96621084,140.03,140.02,8.80994492]
[1764701505353,20.10753769,140.03,140.02,8.80994492]
[1764701506069,7.80132685,140.03,140.02,25.11880892]
[1764701506275,7.14132685,140.03,140.02,37.42501976]
[1764701506556,7.14132685,140.03,140.02,17.46994492]
[1764701506952,7.14132685,140.03,140.0,16.308864]
[1764701506953,24.99464399,140.03,139.99,13.02621084]
[1764701507254,12.30621084,140.01,140.0,8.80994492]
[1764701507459,20.10855781,140.01,140.0,8.80994492]
[1764701507875,19.44855781,140.01,140.0,8.80994492]
[1764701508407,37.30442524,140.01,139.97,0.2]
[1764701508596,12.30621084,140.0,139.99,8.80994492]
[1764701509190,37.30442524,140.01,139.99,8.80994492]
[1764701510624,12.30621084,140.0,139.97,0.2]
[1764701510779,12.30621084,139.98,139.97,0.2]
[1764701511114,12.30621084,139.98,139.97,9.00994492]
[1764701511286,0.66,139.98,139.97,9.00994492]
[1764701511607,12.30621084,139.99,139.97,9.00994492]
[1764701511824,0.66,140.0,139.97,9.00994492]
[1764701511983,0.66,139.99,139.97,9.00994492]
[1764701512184,19.45008853,139.98,139.97,1e-08]
[1764701512383,7.14387769,139.98,139.97,1e-08]
[1764701512612,20.11008853,139.98,139.97,1e-08]
[1764701513718,7.14387769,139.98,139.97,1e-08]
[1764701514013,7.14387769,139.98,139.97,46.08501977]
[1764701514302,17.85831212,140.0,139.97,46.08501977]
[1764701514680,30.82452296,140.0,139.97,33.05880893]
[1764701514880,18.51831212,140.0,139.97,33.05880893]
[1764701515104,0.66,139.99,139.98,8.80994492]
[1764701516717,7.80336738,139.99,139.98,8.80994492]
[1764701517297,7.14336738,139.99,139.98,8.80994492]
[1764701518821,25.00116926,140.0,139.98,8.80994492]
[1764701519125,25.66116926,140.0,139.98,8.80994492]
[1764701520311,25.00116926,140.0,139.99,0.72]
[1764701520617,7.14253472,140.01,140.0,8.80994492]
[1764701520792,7.14253472,140.01,140.0,21.11615576]
[1764701521217,7.80253472,140.01,140.0,8.80994492]
[1764701521391,7.14253472,140.01,140.0,8.80994492]
[1764701521595,73.67634786,140.01,139.97,16.30886401]
[1764701521827,25.65464399,140.03,139.98,0.72]
[1764701521995,37.96085483,140.03,139.99,7.96]
[1764701522202,25.65464399,140.03,139.99,7.96]
[1764701522503,25.65464399,140.03,139.99,20.26621084]
[1764701522823,37.96085483,140.03,139.99,8.68]
[1764701523529,37.96085483,140.03,139.99,17.48994492]
[1764701524626,32.89195969,140.03,139.99,17.48994492]
[1764701525029,32.89195969,140.03,139.99,9.52994492]
[1764701525225,32.89195969,140.03,139.99,16.76994492]
[1764701525415,0.66,140.02,139.99,16.76994492]
[1764701525617,32.89195969,140.03,139.99,17.48994492]
[1764701526025,32.89195969,140.03,139.99,16.76994492]
[1764701526333,7.8973157,140.02,139.99,16.76994492]
[1764701527533,7.2373157,140.02,139.99,17.48994492]
[1764701528726,24.99755103,140.02,139.99,24.72726062]
[1764701529129,24.99755103,140.02,139.97,16.30886401]
[1764701529130,7.8973157,140.01,139.98,8.80994492]
[1764701529335,0.66,140.01,139.98,25.11880892]
[1764701529543,7.8973157,140.01,139.98,25.11880892]
[1764701530035,67.94405113,140.02,139.98,25.11880892]
[1764701530234,0.66,140.0,139.98,25.11880892]
[1764701530735,7.14336738,139.99,139.98,25.11880892]
[1764701532233,24.99943198,140.01,139.98,25.11880892]
[1764701532534,25.67943198,140.01,139.98,25.11880892]
[1764701532758,25.67943198,140.01,139.96,1e-08]
[1764701532759,7.2373157,139.99,139.96,1e-08]
[1764701532908,8.62,140.0,139.96,1e-08]
[1764701532909,7.94,139.98,139.96,1e-08]
[1764701533230,7.9173157,139.99,139.96,1e-08]
[1764701533528,15.1773157,139.99,139.96,1e-08]
[1764701533829,68.65116685,140.01,139.96,1e-08]
[1764701534132,7.14387769,139.98,139.96,1e-08]
[1764701534524,7.14387769,139.98,139.96,0.66000001]
[1764701534721,7.14387769,139.98,139.96,8.80994493]
[1764701534920,7.14387769,139.98,139.96,9.46994493]
[1764701535832,7.14387769,139.98,139.96,32.35612463]
[1764701536133,7.14387769,139.98,139.97,9.46994492]
[1764701536305,25.00291539,139.99,139.97,9.46994492]
[1764701539138,7.14336738,139.99,139.98,12.55892017]
[1764701539728,7.14234697,140.01,139.99,8.80994492]
[1764701539928,7.14234697,140.01,139.99,12.55892017]
[1764701540117,7.14234697,140.01,140.0,0.66]
[1764701540316,24.99742312,140.02,140.01,8.80994492]
[1764701541235,25.67742312,140.02,139.99,53.74]
[1764701541427,28.76639837,140.02,140.0,8.80994492]
[1764701541942,0.68,140.01,139.96,1e-08]
[1764701542161,3.08897525,140.0,139.97,8.80994492]
[1764701542331,7.14336738,139.99,139.97,9.46994492]
[1764701542845,7.14336738,139.99,139.98,9.46994492]
[1764701543042,7.14336738,139.99,139.96,1e-08]
[1764701543250,3.08897525,139.97,139.96,1e-08]
[1764701543744,3.76897525,139.97,139.96,1e-08]
[1764701544447,10.91336333,139.97,139.96,1e-08]
[1764701544631,7.82438808,139.97,139.96,1e-08]
[1764701545024,10.91336333,139.97,139.96,1e-08]
[1764701546762,7.14438808,139.97,139.96,1e-08]
[1764701546949,7.14438808,139.97,139.96,16.96886401]
[1764701547553,17.85841845,139.99,139.96,16.96886401]
[1764701547554,7.14408926,139.98,139.97,8.80994492]
[1764701547753,7.14408926,139.98,139.97,9.46994492]
[1764701548361,7.14408926,139.98,139.97,16.70858025]
[1764701548677,0.68,140.04,140.0,16.308864]
[1764701548847,7.14132685,140.03,140.0,23.54749933]
[1764701549047,24.99514693,140.03,140.01,0.66]
[1764701550967,17.85382008,140.03,140.01,0.66]
[1764701551167,17.85382008,140.03,140.01,7.89863533]
[1764701551367,7.1408169,140.04,140.01,7.89863533]
[1764701551566,7.1408169,140.04,140.02,0.66]
[1764701551963,24.99285917,140.04,140.02,7.89863533]
[1764701552176,7.1408169,140.04,140.02,7.89863533]
[1764701552354,7.1408169,140.04,140.02,0.66]
[1764701553372,24.99166531,140.05,140.01,7.23863533]
[1764701553581,25.67166531,140.05,140.01,7.89863533]
[1764701555859,25.67166531,140.05,140.01,7.23863533]
[1764701556060,25.67166531,140.05,140.02,0.72]
[1764701556262,25.67166531,140.05,140.01,7.23863533]
[1764701556474,25.67166531,140.05,140.01,7.95863533]
[1764701559286,24.99166531,140.05,140.01,7.95863533]
[1764701559582,7.14132685,140.03,140.01,7.95863533]
[1764701560381,7.14132685,140.03,140.01,8.80994492]
[1764701561471,7.85132685,140.03,140.01,8.80994492]
[1764701561682,7.14132685,140.03,140.01,8.80994492]
[1764701562067,7.95863533,140.02,139.97,8.80994492]
[1764701562274,7.23863533,140.01,139.97,25.11880892]
[1764701562477,7.95863533,140.01,139.97,9.49994492]
[1764701562674,7.95863533,140.01,139.97,25.80880892]
[1764701563872,0.72,140.01,139.97,16.73858025]
[1764701564186,7.14285714,140.0,139.98,0.69]
[1764701564710,24.99999999,140.0,139.97,32.17749933]
[1764701564869,24.99999999,140.0,139.97,24.23749933]
[1764701566488,24.99999999,140.0,139.97,16.998864]
[1764701566679,24.99999999,140.0,139.97,24.23749933]
[1764701567574,24.99999999,140.0,139.98,0.69]
[1764701568372,17.85714285,140.0,139.98,0.69]
[1764701568596,7.14234697,140.01,139.98,3.77827853]
[1764701569011,7.14234697,140.01,139.99,0.69]
[1764701569722,24.9982144,140.01,139.98,3.08827853]
[1764701569897,24.9982144,140.01,139.98,3.77827853]
[1764701570217,25.7182144,140.01,139.98,0.69]
[1764701571425,0.72,140.0,139.97,19.39714253]
[1764701571633,0.72,140.0,139.97,28.00714253]
[1764701571932,25.7182144,140.01,139.97,27.31714253]
[1764701572098,25.7182144,140.01,139.98,0.69]
[1764701573425,28.80649293,140.01,139.98,0.69]
[1764701573920,0.72,140.0,139.97,27.31714253]
[1764701574225,0.72,140.0,139.97,28.00714253]
[1764701574403,28.80649293,140.01,139.97,28.00714253]
[1764701574604,3.80827853,140.0,139.97,16.308864]
[1764701575328,0.72,139.99,139.97,16.308864]
[1764701575825,10.23215622,139.98,139.96,1e-08]
[1764701576034,3.80827853,139.97,139.96,1e-08]
[1764701577629,10.95266661,139.97,139.96,1e-08]
[1764701579309,7.86438808,139.97,139.96,1e-08]
[1764701579768,3.80827853,139.97,139.96,1e-08]
[1764701579913,18.87266661,139.97,139.96,1e-08]